[Event "Titled Tuesday Blitz April 18 Late 2023"]
[White "Todorovic, Bojan"]
[Black "reevecanada"]
[WhiteFideId "917087"]
[WhiteElo "2266"]
[BlackElo "2460"]
[Result "1/2-1/2"]
[Round "11"]
[TimeControl "180+2"]
[Date "2023.04.18"]
[WhiteClock "0:00:04"]
[BlackClock "0:00:48"]

1. Nf3 {[%clk 0:02:59]}  Nf6 {[%clk 0:02:58]} 2. g3 {[%clk 0:02:58]}  g6 {[%clk 0:02:58]} 3. Bg2 {[%clk 0:02:58]}  Bg7 {[%clk 0:02:58]} 4. O-O {[%clk 0:02:58]}  O-O {[%clk 0:02:58]} 5. c4 {[%clk 0:02:57]}  c5 {[%clk 0:02:58]} 6. Nc3 {[%clk 0:02:57]}  Nc6 {[%clk 0:02:57]} 7. d3 {[%clk 0:02:56]}  d6 {[%clk 0:02:56]} 8. Rb1 {[%clk 0:02:55]}  a6 {[%clk 0:02:53]} 9. a3 {[%clk 0:02:53]}  Rb8 {[%clk 0:02:52]} 10. b4 {[%clk 0:02:52]}  cxb4 {[%clk 0:02:49]} 11. axb4 {[%clk 0:02:51]}  b5 {[%clk 0:02:49]} 12. cxb5 {[%clk 0:02:39]}  axb5 {[%clk 0:02:48]} 13. d4 {[%clk 0:02:33]}  d5 {[%clk 0:02:47]} 14. Bf4 {[%clk 0:02:26]}  Bf5 {[%clk 0:02:42]} 15. Rb3 {[%clk 0:02:12]}  Rb6 {[%clk 0:02:39]} 16. Ne5 {[%clk 0:02:06]}  Ne4 {[%clk 0:02:27]} 17. Nxc6 {[%clk 0:01:22]}  Rxc6 {[%clk 0:02:24]} 18. Nxb5 {[%clk 0:01:09]}  Qb6 {[%clk 0:02:20]} 19. Bxe4 {[%clk 0:01:09]}  Bxe4 {[%clk 0:02:19]} 20. Nc3 {[%clk 0:01:05]}  Bxd4 {[%clk 0:02:17]} 21. Nxe4 {[%clk 0:00:49]}  dxe4 {[%clk 0:02:15]} 22. Qd2 {[%clk 0:00:37]}  Rd8 {[%clk 0:02:05]} 23. Be3 {[%clk 0:00:26]}  Bg7 {[%clk 0:01:44]} 24. Qa2 {[%clk 0:00:16]}  Qb5 {[%clk 0:01:43]} 25. Re1 {[%clk 0:00:10]}  Ra6 {[%clk 0:01:40]} 26. Qc2 {[%clk 0:00:08]}  Qd5 {[%clk 0:01:39]} 27. Rbb1 {[%clk 0:00:06]}  Ra2 {[%clk 0:01:38]} 28. Qc5 {[%clk 0:00:05]}  Qd7 {[%clk 0:01:36]} 29. b5 {[%clk 0:00:05]}  Bf8 {[%clk 0:01:34]} 30. Qc6 {[%clk 0:00:05]}  Qg4 {[%clk 0:01:30]} 31. b6 {[%clk 0:00:05]}  Rd6 {[%clk 0:01:26]} 32. Qc7 {[%clk 0:00:03]}  Rxe2 {[%clk 0:01:07]} 33. b7 {[%clk 0:00:02]}  Rxe1+ {[%clk 0:01:04]} 34. Rxe1 {[%clk 0:00:02]}  Rd1 {[%clk 0:01:04]} 35. Rxd1 {[%clk 0:00:01]}  Qxd1+ {[%clk 0:01:03]} 36. Kg2 {[%clk 0:00:01]}  Qf3+ {[%clk 0:01:03]} 37. Kg1 {[%clk 0:00:02]}  Qd1+ {[%clk 0:01:01]} 38. Kg2 {[%clk 0:00:02]}  g5 {[%clk 0:00:48]} 39. b8=Q {[%clk 0:00:02]}  Qf3+ {[%clk 0:00:47]} 40. Kg1 {[%clk 0:00:02]}  Qd1+ {[%clk 0:00:47]} 41. Kg2 {[%clk 0:00:03]}  Qf3+ {[%clk 0:00:48]} 42. Kg1 {[%clk 0:00:03]}  Qd1+ {[%clk 0:00:48]} 43. Kg2 {[%clk 0:00:04]} 1/2-1/2


[Site "https://www.chess.com"]

[Event "Titled Tuesday Blitz April 18 Late 2023"]
[White "ayme97"]
[Black "Melikhov, Evgeny V."]
[BlackFideId "4122046"]
[WhiteElo "2249"]
[BlackElo "2158"]
[Result "1-0"]
[Round "11"]
[TimeControl "180+2"]
[Date "2023.04.18"]
[WhiteClock "0:00:56"]
[BlackClock "0:00:05"]

1. d4 {[%clk 0:02:46]}  Nf6 {[%clk 0:02:59]} 2. c4 {[%clk 0:02:45]}  e6 {[%clk 0:02:59]} 3. Nc3 {[%clk 0:02:45]}  Bb4 {[%clk 0:02:59]} 4. Qc2 {[%clk 0:02:45]}  c5 {[%clk 0:02:58]} 5. d5 {[%clk 0:02:43]}  exd5 {[%clk 0:02:45]} 6. cxd5 {[%clk 0:02:44]}  Nxd5 {[%clk 0:02:32]} 7. e4 {[%clk 0:02:43]}  Ne7 {[%clk 0:02:18]} 8. Bc4 {[%clk 0:02:41]}  O-O {[%clk 0:02:14]} 9. Nf3 {[%clk 0:02:38]}  d5 {[%clk 0:02:11]} 10. exd5 {[%clk 0:02:35]}  Nxd5 {[%clk 0:02:11]} 11. O-O {[%clk 0:02:34]}  Nb6 {[%clk 0:01:41]} 12. Ng5 {[%clk 0:02:20]}  g6 {[%clk 0:01:33]} 13. Rd1 {[%clk 0:02:00]}  Bf5 {[%clk 0:01:03]} 14. Rxd8 {[%clk 0:01:44]}  Bxc2 {[%clk 0:01:00]} 15. Bxf7+ {[%clk 0:01:39]}  Kg7 {[%clk 0:01:00]} 16. Ne6+ {[%clk 0:01:36]}  Kxf7 {[%clk 0:01:00]} 17. Nxf8 {[%clk 0:01:33]}  Nc6 {[%clk 0:00:55]} 18. Rxa8 {[%clk 0:01:30]}  Nxa8 {[%clk 0:00:55]} 19. Nxh7 {[%clk 0:01:29]}  Nd4 {[%clk 0:00:47]} 20. Be3 {[%clk 0:01:24]}  Nb6 {[%clk 0:00:43]} 21. Ng5+ {[%clk 0:01:22]}  Kf6 {[%clk 0:00:41]} 22. Nce4+ {[%clk 0:01:20]}  Ke5 {[%clk 0:00:38]} 23. f4+ {[%clk 0:01:13]}  Kd5 {[%clk 0:00:30]} 24. Nf6+ {[%clk 0:01:08]}  Kc6 {[%clk 0:00:29]} 25. a3 {[%clk 0:01:07]}  Ba5 {[%clk 0:00:28]} 26. b4 {[%clk 0:01:06]}  cxb4 {[%clk 0:00:09]} 27. axb4 {[%clk 0:01:06]}  Nb3 {[%clk 0:00:07]} 28. Ra2 {[%clk 0:00:59]}  Bb1 {[%clk 0:00:05]} 29. Rb2 {[%clk 0:00:59]}  Nc4 {[%clk 0:00:05]} 30. Rxb3 {[%clk 0:00:56]}  Nxe3 {[%clk 0:00:05]} 31. bxa5 {[%clk 0:00:56]} 1-0


[Site "https://www.chess.com"]

[Event "Titled Tuesday Blitz April 18 Late 2023"]
[White "Przybylski, Wojciech"]
[Black "Prieto Aranguren, Alain"]
[WhiteFideId "1117599"]
[BlackFideId "2268906"]
[WhiteElo "2222"]
[BlackElo "2209"]
[Result "1-0"]
[Round "11"]
[TimeControl "180+2"]
[Date "2023.04.18"]
[WhiteClock "0:00:05"]
[BlackClock "0:00:07"]

1. e4 {[%clk 0:03:00]}  c6 {[%clk 0:02:56]} 2. d4 {[%clk 0:02:55]}  d5 {[%clk 0:02:55]} 3. Nc3 {[%clk 0:02:55]}  dxe4 {[%clk 0:02:55]} 4. Nxe4 {[%clk 0:02:56]}  Nf6 {[%clk 0:02:55]} 5. Nc3 {[%clk 0:02:54]}  Bf5 {[%clk 0:02:50]} 6. Nf3 {[%clk 0:02:49]}  e6 {[%clk 0:02:50]} 7. g3 {[%clk 0:02:49]}  Be7 {[%clk 0:02:49]} 8. Bg2 {[%clk 0:02:48]}  O-O {[%clk 0:02:50]} 9. O-O {[%clk 0:02:48]}  Na6 {[%clk 0:02:49]} 10. a3 {[%clk 0:02:47]}  Nc7 {[%clk 0:02:49]} 11. a4 {[%clk 0:02:47]}  Ncd5 {[%clk 0:02:49]} 12. Ne2 {[%clk 0:02:38]}  Rc8 {[%clk 0:02:44]} 13. Ne5 {[%clk 0:02:25]}  Nb4 {[%clk 0:02:39]} 14. c3 {[%clk 0:02:16]}  Nbd5 {[%clk 0:02:10]} 15. a5 {[%clk 0:02:15]}  c5 {[%clk 0:02:08]} 16. h3 {[%clk 0:02:10]}  cxd4 {[%clk 0:02:07]} 17. Nxd4 {[%clk 0:02:10]}  Bg6 {[%clk 0:02:07]} 18. Re1 {[%clk 0:02:08]}  Bc5 {[%clk 0:01:55]} 19. Nxg6 {[%clk 0:02:04]}  hxg6 {[%clk 0:01:54]} 20. Kh2 {[%clk 0:01:58]}  b6 {[%clk 0:01:47]} 21. a6 {[%clk 0:01:53]}  Nc7 {[%clk 0:01:42]} 22. Bg5 {[%clk 0:01:44]}  Bxd4 {[%clk 0:01:40]} 23. cxd4 {[%clk 0:01:33]}  Ncd5 {[%clk 0:01:39]} 24. Qd3 {[%clk 0:01:21]}  Qd7 {[%clk 0:01:37]} 25. Rec1 {[%clk 0:01:18]}  Rfd8 {[%clk 0:01:30]} 26. Bd2 {[%clk 0:01:14]}  Rc7 {[%clk 0:01:12]} 27. Rxc7 {[%clk 0:00:54]}  Nxc7 {[%clk 0:01:12]} 28. Rc1 {[%clk 0:00:52]}  Qb5 {[%clk 0:01:07]} 29. Qxb5 {[%clk 0:00:34]}  Nxb5 {[%clk 0:01:07]} 30. Be3 {[%clk 0:00:33]}  Nd5 {[%clk 0:01:01]} 31. Bf1 {[%clk 0:00:30]}  Nbc7 {[%clk 0:00:57]} 32. h4 {[%clk 0:00:21]}  Kf8 {[%clk 0:00:57]} 33. b4 {[%clk 0:00:16]}  Ke7 {[%clk 0:00:56]} 34. b5 {[%clk 0:00:16]}  Kd6 {[%clk 0:00:53]} 35. Rc6+ {[%clk 0:00:15]}  Kd7 {[%clk 0:00:53]} 36. Kg2 {[%clk 0:00:15]}  Rc8 {[%clk 0:00:50]} 37. Rc1 {[%clk 0:00:14]}  Ne8 {[%clk 0:00:46]} 38. Rxc8 {[%clk 0:00:05]}  Kxc8 {[%clk 0:00:46]} 39. Bd2 {[%clk 0:00:04]}  Nd6 {[%clk 0:00:45]} 40. Bf4 {[%clk 0:00:03]}  Ne4 {[%clk 0:00:42]} 41. Bc1 {[%clk 0:00:01]}  Nec3 {[%clk 0:00:41]} 42. Kf3 {[%clk 0:00:01]}  Kc7 {[%clk 0:00:40]} 43. Bb2 {[%clk 0:00:01]}  Na4 {[%clk 0:00:38]} 44. Bc1 {[%clk 0:00:01]}  Nac3 {[%clk 0:00:36]} 45. g4 {[%clk 0:00:02]}  Kd6 {[%clk 0:00:34]} 46. Bb2 {[%clk 0:00:02]}  Nd1 {[%clk 0:00:32]} 47. Ba3+ {[%clk 0:00:02]}  Kd7 {[%clk 0:00:31]} 48. h5 {[%clk 0:00:03]}  gxh5 {[%clk 0:00:31]} 49. gxh5 {[%clk 0:00:03]}  Nf6 {[%clk 0:00:30]} 50. Bf8 {[%clk 0:00:03]}  Nxh5 {[%clk 0:00:29]} 51. Be2 {[%clk 0:00:03]}  Nc3 {[%clk 0:00:29]} 52. Bd3 {[%clk 0:00:03]}  g6 {[%clk 0:00:28]} 53. Ke3 {[%clk 0:00:03]}  Nf6 {[%clk 0:00:26]} 54. Ba3 {[%clk 0:00:02]}  Nfd5+ {[%clk 0:00:26]} 55. Kd2 {[%clk 0:00:03]}  g5 {[%clk 0:00:24]} 56. Bb2 {[%clk 0:00:03]}  Na4 {[%clk 0:00:24]} 57. Ba1 {[%clk 0:00:03]}  g4 {[%clk 0:00:18]} 58. Bc2 {[%clk 0:00:04]}  Nc5 {[%clk 0:00:16]} 59. dxc5 {[%clk 0:00:03]}  bxc5 {[%clk 0:00:17]} 60. Be5 {[%clk 0:00:03]}  f5 {[%clk 0:00:15]} 61. Bb8 {[%clk 0:00:03]}  f4 {[%clk 0:00:13]} 62. Bxa7 {[%clk 0:00:04]}  g3 {[%clk 0:00:14]} 63. fxg3 {[%clk 0:00:04]}  fxg3 {[%clk 0:00:14]} 64. Be4 {[%clk 0:00:04]}  Nc7 {[%clk 0:00:11]} 65. Bc6+ {[%clk 0:00:01]}  Kd6 {[%clk 0:00:12]} 66. Bb6 {[%clk 0:00:02]}  Nd5 {[%clk 0:00:07]} 67. Bxd5 {[%clk 0:00:02]}  exd5 {[%clk 0:00:07]} 68. a7 {[%clk 0:00:02]}  g2 {[%clk 0:00:07]} 69. a8=Q {[%clk 0:00:02]}  g1=Q {[%clk 0:00:07]} 70. Qd8+ {[%clk 0:00:02]}  Ke5 {[%clk 0:00:07]} 71. Qe7+ {[%clk 0:00:02]}  Kd4 {[%clk 0:00:07]} 72. Qxc5+ {[%clk 0:00:02]}  Ke4 {[%clk 0:00:05]} 73. Qxg1 {[%clk 0:00:03]}  d4 {[%clk 0:00:05]} 74. Qxd4+ {[%clk 0:00:04]}  Kf3 {[%clk 0:00:06]} 75. Qe3+ {[%clk 0:00:04]}  Kg2 {[%clk 0:00:06]} 76. Qf2+ {[%clk 0:00:04]}  Kh1 {[%clk 0:00:07]} 77. Qg1# {[%clk 0:00:05]} 1-0


[Site "https://www.chess.com"]

[Event "Titled Tuesday Blitz April 18 Late 2023"]
[White "Meunier-Pion, Jean"]
[Black "mjelcic"]
[WhiteFideId "20685327"]
[WhiteElo "2124"]
[BlackElo "2206"]
[Result "1-0"]
[Round "11"]
[TimeControl "180+2"]
[Date "2023.04.18"]
[WhiteClock "0:00:13"]
[BlackClock "0:00:59"]

1. e4 {[%clk 0:03:00]}  e5 {[%clk 0:02:59]} 2. Nf3 {[%clk 0:03:01]}  Nc6 {[%clk 0:02:59]} 3. Bb5 {[%clk 0:03:01]}  a6 {[%clk 0:02:58]} 4. Ba4 {[%clk 0:03:02]}  Nf6 {[%clk 0:02:57]} 5. d3 {[%clk 0:03:02]}  d6 {[%clk 0:02:49]} 6. c3 {[%clk 0:03:01]}  Be7 {[%clk 0:02:44]} 7. O-O {[%clk 0:03:00]}  O-O {[%clk 0:02:44]} 8. Re1 {[%clk 0:02:53]}  b5 {[%clk 0:02:37]} 9. Bc2 {[%clk 0:02:52]}  d5 {[%clk 0:02:31]} 10. a4 {[%clk 0:02:45]}  dxe4 {[%clk 0:02:21]} 11. dxe4 {[%clk 0:02:44]}  Qxd1 {[%clk 0:02:16]} 12. Rxd1 {[%clk 0:02:45]}  Bb7 {[%clk 0:02:15]} 13. h3 {[%clk 0:02:29]}  Rfd8 {[%clk 0:02:12]} 14. Rxd8+ {[%clk 0:02:19]}  Rxd8 {[%clk 0:02:11]} 15. axb5 {[%clk 0:02:20]}  axb5 {[%clk 0:02:10]} 16. Be3 {[%clk 0:02:18]}  b4 {[%clk 0:02:07]} 17. Nbd2 {[%clk 0:02:16]}  h6 {[%clk 0:02:02]} 18. Nc4 {[%clk 0:02:11]}  Bd6 {[%clk 0:01:52]} 19. Kf1 {[%clk 0:01:51]}  Kf8 {[%clk 0:01:52]} 20. Ke2 {[%clk 0:01:51]}  Ke7 {[%clk 0:01:51]} 21. Nh4 {[%clk 0:01:42]}  Bc8 {[%clk 0:01:30]} 22. Nxd6 {[%clk 0:01:34]}  cxd6 {[%clk 0:01:26]} 23. Bb6 {[%clk 0:01:26]}  Rd7 {[%clk 0:01:24]} 24. Nf5+ {[%clk 0:01:25]}  Ke6 {[%clk 0:01:09]} 25. Nxg7+ {[%clk 0:01:07]}  Ke7 {[%clk 0:01:09]} 26. Nf5+ {[%clk 0:01:08]}  Ke6 {[%clk 0:01:09]} 27. Ra8 {[%clk 0:00:34]}  Rb7 {[%clk 0:01:08]} 28. Rxc8 {[%clk 0:00:14]}  Rxb6 {[%clk 0:01:08]} 29. Rc7 {[%clk 0:00:14]}  b3 {[%clk 0:00:59]} 30. Ng7# {[%clk 0:00:13]} 1-0


[Site "https://www.chess.com"]

[Event "Titled Tuesday Blitz April 18 Late 2023"]
[White "Gatterer, Florian"]
[Black "Winkels, Marcel"]
[WhiteFideId "811688"]
[BlackFideId "1003887"]
[WhiteElo "2221"]
[BlackElo "1900"]
[Result "1-0"]
[Round "11"]
[TimeControl "180+2"]
[Date "2023.04.18"]
[WhiteClock "0:00:08"]
[BlackClock "0:00:36"]

1. b3 {[%clk 0:03:00]}  e5 {[%clk 0:02:58]} 2. Bb2 {[%clk 0:02:56]}  e4 {[%clk 0:02:58]} 3. d3 {[%clk 0:02:49]}  Nf6 {[%clk 0:02:55]} 4. e3 {[%clk 0:02:39]}  d5 {[%clk 0:02:48]} 5. Nd2 {[%clk 0:02:34]}  Bb4 {[%clk 0:02:41]} 6. a3 {[%clk 0:02:31]}  Bd6 {[%clk 0:02:40]} 7. dxe4 {[%clk 0:02:27]}  dxe4 {[%clk 0:02:39]} 8. Nc4 {[%clk 0:02:26]}  O-O {[%clk 0:02:36]} 9. Nxd6 {[%clk 0:02:26]}  cxd6 {[%clk 0:02:36]} 10. Ne2 {[%clk 0:02:23]}  Nc6 {[%clk 0:02:34]} 11. Nd4 {[%clk 0:02:18]}  Ne5 {[%clk 0:02:30]} 12. h3 {[%clk 0:02:15]}  a6 {[%clk 0:02:26]} 13. Be2 {[%clk 0:02:10]}  Nfd7 {[%clk 0:02:15]} 14. Nf5 {[%clk 0:01:57]}  Nd3+ {[%clk 0:02:13]} 15. cxd3 {[%clk 0:01:47]}  Qa5+ {[%clk 0:02:13]} 16. Qd2 {[%clk 0:01:45]}  Qxf5 {[%clk 0:02:13]} 17. dxe4 {[%clk 0:01:35]}  Qxe4 {[%clk 0:02:12]} 18. O-O {[%clk 0:01:28]}  Ne5 {[%clk 0:02:10]} 19. Qxd6 {[%clk 0:01:24]}  f6 {[%clk 0:01:54]} 20. Bxe5 {[%clk 0:01:08]}  fxe5 {[%clk 0:01:51]} 21. Bd3 {[%clk 0:00:58]}  Qh4 {[%clk 0:01:40]} 22. Qxe5 {[%clk 0:00:58]}  Kh8 {[%clk 0:01:26]} 23. Rac1 {[%clk 0:00:54]}  Bd7 {[%clk 0:01:24]} 24. Qe4 {[%clk 0:00:46]}  Qf6 {[%clk 0:01:20]} 25. Qd4 {[%clk 0:00:42]}  Qe7 {[%clk 0:01:12]} 26. Rc7 {[%clk 0:00:40]}  Rad8 {[%clk 0:01:10]} 27. Qe4 {[%clk 0:00:30]}  Qxe4 {[%clk 0:01:01]} 28. Bxe4 {[%clk 0:00:31]}  Bc6 {[%clk 0:01:01]} 29. Bxc6 {[%clk 0:00:31]}  bxc6 {[%clk 0:01:02]} 30. Rxc6 {[%clk 0:00:31]}  Rd3 {[%clk 0:01:02]} 31. Rxa6 {[%clk 0:00:31]}  Rxb3 {[%clk 0:01:02]} 32. Ra7 {[%clk 0:00:31]}  Rb2 {[%clk 0:01:01]} 33. e4 {[%clk 0:00:29]}  Re8 {[%clk 0:01:00]} 34. f3 {[%clk 0:00:29]}  Rd8 {[%clk 0:01:00]} 35. Rf2 {[%clk 0:00:20]}  Rb1+ {[%clk 0:00:56]} 36. Kh2 {[%clk 0:00:20]}  h5 {[%clk 0:00:56]} 37. h4 {[%clk 0:00:19]}  Rdd1 {[%clk 0:00:54]} 38. Rc2 {[%clk 0:00:19]}  Rh1+ {[%clk 0:00:53]} 39. Kg3 {[%clk 0:00:19]}  Rhd1 {[%clk 0:00:52]} 40. Ra5 {[%clk 0:00:18]}  g6 {[%clk 0:00:50]} 41. Ra7 {[%clk 0:00:17]}  Rd8 {[%clk 0:00:47]} 42. Rac7 {[%clk 0:00:17]}  Ra1 {[%clk 0:00:44]} 43. Rc8 {[%clk 0:00:16]}  Rxc8 {[%clk 0:00:44]} 44. Rxc8+ {[%clk 0:00:17]}  Kg7 {[%clk 0:00:44]} 45. Ra8 {[%clk 0:00:17]}  Kf6 {[%clk 0:00:43]} 46. a4 {[%clk 0:00:17]}  Ke5 {[%clk 0:00:43]} 47. a5 {[%clk 0:00:17]}  Kd4 {[%clk 0:00:43]} 48. a6 {[%clk 0:00:18]}  Ke3 {[%clk 0:00:43]} 49. a7 {[%clk 0:00:18]}  Ke2 {[%clk 0:00:42]} 50. e5 {[%clk 0:00:18]}  Kf1 {[%clk 0:00:42]} 51. e6 {[%clk 0:00:18]}  Ra2 {[%clk 0:00:40]} 52. e7 {[%clk 0:00:18]}  Rxg2+ {[%clk 0:00:41]} 53. Kf4 {[%clk 0:00:18]}  Re2 {[%clk 0:00:40]} 54. e8=Q {[%clk 0:00:17]}  Rxe8 {[%clk 0:00:40]} 55. Rxe8 {[%clk 0:00:15]}  Kg2 {[%clk 0:00:40]} 56. Kg5 {[%clk 0:00:15]}  Kh3 {[%clk 0:00:40]} 57. Kxg6 {[%clk 0:00:15]}  Kxh4 {[%clk 0:00:40]} 58. a8=Q {[%clk 0:00:15]}  Kg3 {[%clk 0:00:39]} 59. Qb8+ {[%clk 0:00:15]}  Kxf3 {[%clk 0:00:39]} 60. Rf8+ {[%clk 0:00:14]}  Ke4 {[%clk 0:00:39]} 61. Qb4+ {[%clk 0:00:14]}  Kd3 {[%clk 0:00:39]} 62. Rd8+ {[%clk 0:00:12]}  Ke3 {[%clk 0:00:38]} 63. Qd4+ {[%clk 0:00:12]}  Kf3 {[%clk 0:00:38]} 64. Rf8+ {[%clk 0:00:11]}  Kg3 {[%clk 0:00:36]} 65. Qf2+ {[%clk 0:00:11]}  Kh3 {[%clk 0:00:35]} 66. Rf3+ {[%clk 0:00:10]}  Kg4 {[%clk 0:00:36]} 67. Qg3# {[%clk 0:00:08]} 1-0


[Site "https://www.chess.com"]

[Event "Titled Tuesday Blitz April 18 Late 2023"]
[White "Kielinkei"]
[Black "Smith, Garrett L"]
[BlackFideId "2024829"]
[WhiteElo "2411"]
[BlackElo "2294"]
[Result "1-0"]
[Round "11"]
[TimeControl "180+2"]
[Date "2023.04.18"]
[WhiteClock "0:00:29"]
[BlackClock "0:00:13"]

1. e4 {[%clk 0:03:00]}  c5 {[%clk 0:03:00]} 2. a3 {[%clk 0:03:01]}  g6 {[%clk 0:02:53]} 3. Nc3 {[%clk 0:02:58]}  Bg7 {[%clk 0:02:53]} 4. Bc4 {[%clk 0:02:59]}  Nc6 {[%clk 0:02:53]} 5. d3 {[%clk 0:02:58]}  e6 {[%clk 0:02:53]} 6. Ba2 {[%clk 0:02:46]}  Nge7 {[%clk 0:02:54]} 7. h4 {[%clk 0:02:46]}  d5 {[%clk 0:02:46]} 8. h5 {[%clk 0:02:44]}  b6 {[%clk 0:02:29]} 9. h6 {[%clk 0:02:37]}  Bf6 {[%clk 0:02:29]} 10. f4 {[%clk 0:02:27]}  d4 {[%clk 0:02:19]} 11. Nce2 {[%clk 0:02:16]}  Ng8 {[%clk 0:02:13]} 12. e5 {[%clk 0:02:12]}  Be7 {[%clk 0:02:11]} 13. Nf3 {[%clk 0:02:10]}  Bb7 {[%clk 0:02:08]} 14. Kf2 {[%clk 0:02:04]}  Qd7 {[%clk 0:02:08]} 15. g4 {[%clk 0:02:01]}  O-O-O {[%clk 0:02:00]} 16. g5 {[%clk 0:02:00]}  Bf8 {[%clk 0:01:57]} 17. Ng3 {[%clk 0:01:58]}  Nge7 {[%clk 0:01:56]} 18. Ne4 {[%clk 0:01:57]}  Nf5 {[%clk 0:01:54]} 19. Bd2 {[%clk 0:01:49]}  Qc7 {[%clk 0:01:54]} 20. Qe1 {[%clk 0:01:43]}  Nce7 {[%clk 0:01:51]} 21. b4 {[%clk 0:01:39]}  Nd5 {[%clk 0:01:44]} 22. Bxd5 {[%clk 0:01:37]}  exd5 {[%clk 0:01:30]} 23. Ng3 {[%clk 0:01:33]}  Nxg3 {[%clk 0:01:20]} 24. Kxg3 {[%clk 0:01:34]}  Kb8 {[%clk 0:01:20]} 25. bxc5 {[%clk 0:01:32]}  Bxc5 {[%clk 0:01:15]} 26. a4 {[%clk 0:01:30]}  a5 {[%clk 0:01:12]} 27. Rb1 {[%clk 0:01:27]}  Ka7 {[%clk 0:01:09]} 28. Nh2 {[%clk 0:01:18]}  Bc6 {[%clk 0:01:10]} 29. Ng4 {[%clk 0:01:14]}  Bxa4 {[%clk 0:01:04]} 30. Qc1 {[%clk 0:01:10]}  Bc6 {[%clk 0:00:58]} 31. Qb2 {[%clk 0:01:06]}  b5 {[%clk 0:00:47]} 32. Ra1 {[%clk 0:01:06]}  a4 {[%clk 0:00:47]} 33. Bb4 {[%clk 0:00:59]}  Qb6 {[%clk 0:00:44]} 34. Rhb1 {[%clk 0:00:56]}  Bxb4 {[%clk 0:00:33]} 35. Qxb4 {[%clk 0:00:56]}  Rb8 {[%clk 0:00:34]} 36. Qe7+ {[%clk 0:00:51]}  Rb7 {[%clk 0:00:34]} 37. Qf6 {[%clk 0:00:49]}  Rc8 {[%clk 0:00:30]} 38. Rxa4+ {[%clk 0:00:50]}  bxa4 {[%clk 0:00:23]} 39. Rxb6 {[%clk 0:00:50]}  Rxb6 {[%clk 0:00:23]} 40. Qxf7+ {[%clk 0:00:49]}  Rb7 {[%clk 0:00:22]} 41. Qf6 {[%clk 0:00:43]}  Kb6 {[%clk 0:00:18]} 42. Qd6 {[%clk 0:00:39]}  Ra8 {[%clk 0:00:15]} 43. Qb4+ {[%clk 0:00:37]}  Kc7 {[%clk 0:00:15]} 44. Qd6+ {[%clk 0:00:37]}  Kb6 {[%clk 0:00:16]} 45. Qb4+ {[%clk 0:00:37]}  Kc7 {[%clk 0:00:16]} 46. Qe7+ {[%clk 0:00:33]}  Kb6 {[%clk 0:00:16]} 47. Qa3 {[%clk 0:00:33]}  Kc7 {[%clk 0:00:15]} 48. Nf6 {[%clk 0:00:28]}  Rb1 {[%clk 0:00:14]} 49. e6 {[%clk 0:00:28]}  Re1 {[%clk 0:00:12]} 50. Qe7+ {[%clk 0:00:28]}  Kb6 {[%clk 0:00:13]} 51. Qb4+ {[%clk 0:00:28]}  Kc7 {[%clk 0:00:13]} 52. Qxe1 {[%clk 0:00:29]} 1-0


[Site "https://www.chess.com"]

[Event "Titled Tuesday Blitz April 18 Late 2023"]
[White "Harish, Neeraj"]
[Black "micke12a"]
[WhiteFideId "30958130"]
[WhiteElo "1965"]
[BlackElo "2361"]
[Result "1-0"]
[Round "11"]
[TimeControl "180+2"]
[Date "2023.04.18"]
[WhiteClock "0:00:25"]
[BlackClock "0:00:16"]

1. e4 {[%clk 0:03:00]}  c5 {[%clk 0:02:59]} 2. Nf3 {[%clk 0:03:00]}  d6 {[%clk 0:02:59]} 3. d4 {[%clk 0:03:01]}  cxd4 {[%clk 0:02:59]} 4. Nxd4 {[%clk 0:03:02]}  Nf6 {[%clk 0:03:00]} 5. Nc3 {[%clk 0:03:02]}  a6 {[%clk 0:02:59]} 6. Be3 {[%clk 0:03:02]}  e5 {[%clk 0:02:59]} 7. Nb3 {[%clk 0:03:01]}  Be7 {[%clk 0:02:59]} 8. f3 {[%clk 0:03:01]}  Be6 {[%clk 0:02:59]} 9. Qd2 {[%clk 0:03:01]}  h5 {[%clk 0:03:00]} 10. Nd5 {[%clk 0:02:59]}  Nxd5 {[%clk 0:02:57]} 11. exd5 {[%clk 0:03:00]}  Bf5 {[%clk 0:02:58]} 12. Be2 {[%clk 0:02:55]}  Nd7 {[%clk 0:02:53]} 13. Na5 {[%clk 0:02:54]}  Qc7 {[%clk 0:02:39]} 14. c4 {[%clk 0:02:48]}  O-O {[%clk 0:02:32]} 15. O-O {[%clk 0:02:47]}  Nb8 {[%clk 0:02:20]} 16. b4 {[%clk 0:02:44]}  b6 {[%clk 0:02:19]} 17. Nb3 {[%clk 0:02:44]}  Nd7 {[%clk 0:02:19]} 18. Rac1 {[%clk 0:02:43]}  Bg6 {[%clk 0:02:15]} 19. Rfd1 {[%clk 0:02:37]}  f5 {[%clk 0:02:14]} 20. c5 {[%clk 0:02:34]}  bxc5 {[%clk 0:02:07]} 21. bxc5 {[%clk 0:02:33]}  f4 {[%clk 0:02:03]} 22. Bf2 {[%clk 0:02:32]}  Qb8 {[%clk 0:01:43]} 23. c6 {[%clk 0:02:24]}  Nf6 {[%clk 0:01:42]} 24. Bd3 {[%clk 0:02:13]}  e4 {[%clk 0:01:39]} 25. fxe4 {[%clk 0:02:10]}  Bxe4 {[%clk 0:01:39]} 26. Re1 {[%clk 0:02:05]}  Bxd3 {[%clk 0:01:28]} 27. Qxd3 {[%clk 0:02:06]}  Bd8 {[%clk 0:01:28]} 28. Nd4 {[%clk 0:01:45]}  Bb6 {[%clk 0:01:24]} 29. Ne6 {[%clk 0:01:43]}  Bxf2+ {[%clk 0:01:05]} 30. Kxf2 {[%clk 0:01:43]}  Qb6+ {[%clk 0:01:05]} 31. Kf1 {[%clk 0:01:33]}  Ng4 {[%clk 0:00:59]} 32. Qd4 {[%clk 0:01:26]}  Qxd4 {[%clk 0:00:54]} 33. Nxd4 {[%clk 0:01:25]}  Ne3+ {[%clk 0:00:54]} 34. Kg1 {[%clk 0:01:15]}  Nxd5 {[%clk 0:00:52]} 35. Re6 {[%clk 0:01:15]}  Rf6 {[%clk 0:00:40]} 36. Rxf6 {[%clk 0:01:04]}  Nxf6 {[%clk 0:00:41]} 37. Nf5 {[%clk 0:01:04]}  Kf7 {[%clk 0:00:36]} 38. c7 {[%clk 0:01:03]}  Ke6 {[%clk 0:00:25]} 39. c8=Q+ {[%clk 0:00:46]}  Rxc8 {[%clk 0:00:24]} 40. Rxc8 {[%clk 0:00:46]}  Kxf5 {[%clk 0:00:24]} 41. Rc6 {[%clk 0:00:46]}  d5 {[%clk 0:00:25]} 42. Rxa6 {[%clk 0:00:46]}  d4 {[%clk 0:00:25]} 43. Kf2 {[%clk 0:00:46]}  Ke4 {[%clk 0:00:23]} 44. Ke2 {[%clk 0:00:43]}  Nd5 {[%clk 0:00:20]} 45. a4 {[%clk 0:00:33]}  g5 {[%clk 0:00:15]} 46. a5 {[%clk 0:00:28]}  g4 {[%clk 0:00:14]} 47. Re6+ {[%clk 0:00:27]}  Kf5 {[%clk 0:00:15]} 48. Rh6 {[%clk 0:00:27]}  Ke4 {[%clk 0:00:13]} 49. Rxh5 {[%clk 0:00:25]}  f3+ {[%clk 0:00:13]} 50. gxf3+ {[%clk 0:00:24]}  gxf3+ {[%clk 0:00:14]} 51. Kf2 {[%clk 0:00:25]}  Nf4 {[%clk 0:00:14]} 52. Rh8 {[%clk 0:00:19]}  Nd3+ {[%clk 0:00:13]} 53. Kf1 {[%clk 0:00:20]}  Nb4 {[%clk 0:00:12]} 54. Re8+ {[%clk 0:00:19]}  Kd3 {[%clk 0:00:12]} 55. Kf2 {[%clk 0:00:18]}  Kc4 {[%clk 0:00:10]} 56. Kxf3 {[%clk 0:00:19]}  Kb5 {[%clk 0:00:11]} 57. Rd8 {[%clk 0:00:19]}  d3 {[%clk 0:00:10]} 58. Ke3 {[%clk 0:00:18]}  Kxa5 {[%clk 0:00:10]} 59. Rxd3 {[%clk 0:00:18]}  Nxd3 {[%clk 0:00:10]} 60. Kxd3 {[%clk 0:00:19]}  Kb6 {[%clk 0:00:11]} 61. Ke4 {[%clk 0:00:19]}  Kc7 {[%clk 0:00:11]} 62. Kf5 {[%clk 0:00:20]}  Kd8 {[%clk 0:00:12]} 63. Kg6 {[%clk 0:00:20]}  Ke8 {[%clk 0:00:12]} 64. Kg7 {[%clk 0:00:21]}  Ke7 {[%clk 0:00:13]} 65. h4 {[%clk 0:00:22]}  Ke6 {[%clk 0:00:14]} 66. h5 {[%clk 0:00:23]}  Kf5 {[%clk 0:00:15]} 67. h6 {[%clk 0:00:23]}  Kg5 {[%clk 0:00:15]} 68. h7 {[%clk 0:00:24]}  Kf5 {[%clk 0:00:16]} 69. h8=Q {[%clk 0:00:25]} 1-0


[Site "https://www.chess.com"]